Cogmind - Beta 15 @@@ ROGUE MODE // 2025.10.10 @ 21:44:05 Player: DietSnapple Result: Destroyed by G-34 Mercenary with Small Laser Performance ------------- Evolutions (1) 500 Regions Visited (3) 600 Robots Destroyed (26) 130 Value Destroyed (594) 594 Prototype IDs (0) 0 Alien Tech Used (0) 0 Bonus (25) 25 TOTAL SCORE: 1849 Bonus ------- Follower Combat Kills 25 Cogmind --------- Core Integrity 0/400 Matter 184/300 Energy 100/100 System Corruption 0% Temperature Cool (6) Movement Core (400) Ox7 Location -9/Materials Parts ------- > --- POWER (1) -------- (None) > --- PROPULSION (2) --- (None) > --- UTILITY (4) ------ Large Storage Unit Signal Interpreter > --- WEAPON (2) ------- Katana > --- INVENTORY (15) --- Light Nuclear Core Improved Aluminum Leg ECM Suite Hacking Suite Peak State ------------ > --- POWER ------------ Ion Engine > --- PROPULSION ------- Improved Aluminum Leg Improved Aluminum Leg > --- UTILITY ---------- Large Storage Unit Signal Interpreter Light Armor Plating > --- WEAPON ----------- Light Assault Rifle Light Assault Rifle > --- INVENTORY -------- Light Nuclear Core Improved Aluminum Leg ECM Suite Hacking Suite Grenade Launcher Grenade Launcher [Rating: 11] Favorites ----------- Power Ion Engine Engine Ion Engine Propulsion Improved Aluminum Leg Leg Improved Aluminum Leg Utility Signal Interpreter Storage Large Storage Unit Processor Signal Interpreter Protection Light Armor Plating Weapon Assault Rifle Ballistic Gun Assault Rifle Launcher Grenade Launcher Slashing Weapon Katana Build | -11 -10 -10 -9 ------- Run | Yrd Mat Min Mat Slots Evolved 2 | . . . 2 Power . | . . . . Propulsion . | . . . . Utility 2 | . . . 2 Weapon . | . . . . Parts Attached 18 | 6 7 . 5 Power 2 | 1 1 . . Engine 2 | 1 1 . . Core . | . . . . Reactor . | . . . . Propulsion 5 | 2 2 . 1 Treads . | . . . . Leg 5 | 2 2 . 1 Wheel . | . . . . Hover . | . . . . Flight . | . . . . Utility 4 | 1 2 . 1 Device . | . . . . Storage 2 | 1 1 . . Processor 1 | . 1 . . Hackware . | . . . . Protection 1 | . . . 1 Artifact . | . . . . Weapon 7 | 2 2 . 3 Energy Gun . | . . . . Energy Cannon . | . . . . Ballistic Gun 4 | 2 2 . . Ballistic Cannon . | . . . . Launcher 2 | . . . 2 Special Weapon . | . . . . Impact Weapon . | . . . . Slashing Weapon 1 | . . . 1 Piercing Weapon . | . . . . Special Melee Weapon . | . . . . Unidentified Prototypes . | . . . . Parts Lost 9 | . 4 . 5 Power 2 | . 1 . 1 Propulsion 2 | . 1 . 1 Utility 1 | . . . 1 Weapon 4 | . 2 . 2 Highest Loss Streak 5 | . 2 . 5 To Critical Strikes . | . . . . Average Backups 6 | 1 6 8 5 Power . | . . 1 1 Propulsion 2 | 1 2 2 1 Utility 1 | . 1 2 2 Weapon 2 | . 2 3 1 Tool/Special . | . . . . Unused Backups 6 | . 2 . 4 Power 1 | . . . 1 Propulsion 3 | . 2 . 1 Utility 2 | . . . 2 Weapon . | . . . . Tool/Special . | . . . . Average Slot Usage (%) 81 | . 91 71 71 Engine 12 | . 14 14 8 Leg 19 | . 23 14 15 Storage 13 | . 14 14 11 Processor 12 | . 12 14 11 Protection 1 | . . . 8 Ballistic Gun 20 | . 26 14 15 Peak Build Rating 11 | 6 10 7 11 Average Rating 7 | 4 8 7 9 On Entrance 5 | . 6 7 7 Naked Turns . | . . . . Heaviest Build 30 | 13 28 26 30 Greatest Support 26 | 20 26 13 26 Greatest Overweight (x) 8 | . 2 1 8 Average Overweight (x) . | . . 1 1 Largest Inventory Capacity 15 | 8 15 15 15 Average Capacity 11 | 6 8 15 15 Most Carried 9 | 4 8 9 8 Average Carried 6 | 2 7 8 5 Final Capacity 15 | 8 15 15 15 Final Carried 9 | 4 8 9 4 Class Distribution -------------------- 100% | Mutant Dominant Class ---------------- Mutant | -10/Materials Mutant | -10/Mines Mutant | -9/Materials Resources | -11 -10 -10 -9 ----------- Run | Yrd Mat Min Mat Matter Collected 629 | 201 406 22 . Remotely . | . . . . Salvage Created 803 | . 696 . 107 Parts 52 | . 45 . 7 Haulers Intercepted 2 | . 2 . . Recyclers Shooed 3 | . 3 . . Parts Field Recycled . | . . . . Retrieved Matter . | . . . . Parts Self-Destructed . | . . . . Prevented . | . . . . Kills | -11 -10 -10 -9 ------- Run | Yrd Mat Min Mat Combat Hostiles Destroyed 18 | . 15 . 3 Guns 15 | . 15 . . AOE 3 | . . . 3 Classes Destroyed 7 | . 5 . 2 Worker 3 | . 3 . . Builder 2 | . . . 2 Hauler 2 | . 2 . . Operator 1 | . 1 . . Swarmer 5 | . 5 . . Grunt 12 | . 10 . 2 Duelist 1 | . . . 1 Best Kill Streak 5 | . 4 . 5 Combat Bots Only 3 | . 3 . 3 Max Kills in Single Turn 2 | . 2 . 2 Gunslinging 1 | . 1 . . Exploded 1 | . . . 1 Melee . | . . . . Uniques/NPCs Destroyed . | . . . . Combat | -11 -10 -10 -9 -------- Run | Yrd Mat Min Mat Hostile Shots Fired 136 | . 87 . 49 Missed 29 | . 17 . 12 Hits 107 | . 70 . 37 Melee 12 | . . . 12 Projectile 95 | . 70 . 25 Critical Strikes 4 | . . . 4 Damage Taken 1670 | . 808 . 862 Core 646 | . 239 . 407 Absorbed by Shields . | . . . . Core Remaining (%) 52 | 100 . 4 . Volleys Fired 85 | . 66 . 19 Largest 2 | . 2 . 2 Hottest 40 | . 40 . 40 Shots Fired 143 | . 116 . 27 Gun 137 | . 116 . 21 Cannon . | . . . . Launcher 6 | . . . 6 Special . | . . . . Kinetic 137 | . 116 . 21 Thermal . | . . . . Explosive 6 | . . . 6 Electromagnetic . | . . . . Robot Hit Streak 8 | . 8 . 5 Robot Miss Streak 7 | . 7 . 3 Penetration Max . | . . . . Secondary Targets 1 | . 1 . . Max Gunslinging Chain 1 | . 1 . . Shots Hit Robots 83 | . 69 . 14 Core Hits 51 | . 37 . 14 Critical Kills 1 | . 1 . . Critical Parts Destroyed . | . . . . Critical Strikes 1 | . 1 . . Destroy 1 | . 1 . . Melee Attacks 1 | . . . 1 Impact . | . . . . Slashing 1 | . . . 1 Piercing . | . . . . Sneak Attacks . | . . . . Combat Hostiles . | . . . . Follow-up Attacks . | . . . . Damage Inflicted 1262 | . 842 . 420 Guns 924 | . 831 . 93 Cannons . | . . . . Explosions 327 | . . . 327 Melee . | . . . . Ramming 11 | . 11 . . Kinetic 924 | . 831 . 93 Thermal . | . . . . Explosive 292 | . . . 292 Electromagnetic 35 | . . . 35 Impact . | . . . . Slashing . | . . . . Piercing . | . . . . Highest Corruption 2 | . 2 2 . Average Corruption 2 | . 2 2 . Corruption Purged . | . . . . Corruption Blocked . | . . . . Effects 12 | . 7 5 . Message Errors 2 | . 1 1 . Matter Fused 1 | . 1 . . Heat Flow Errors 1 | . . 1 . Energy Discharges 3 | . 2 1 . Data Loss (minor) 2 | . 1 1 . Data Loss (major) 1 | . . 1 . Misfires 1 | . 1 . . Weapon Failures 1 | . 1 . . Overload Shots . | . . . . Overflow Damage 11 | . . . 11 Projectiles . | . . . . Explosions 11 | . . . 11 Melee . | . . . . Knockbacks . | . . . . Impact . | . . . . Kinetic . | . . . . Secondary . | . . . . Self-Inflicted Damage 185 | . . . 185 Shots 8 | . . . 8 Rammed . | . . . . Targets Rammed 3 | . 3 . . Kicked 3 | . 3 . . Crushed . | . . . . Highest Temperature 200 | . 9 200 . Average Temperature 38 | . 5 102 . Received Heat Transfer 531 | . 381 . 150 Siege Activations . | . . . . Martial Activations . | . . . . Shielding Activations . | . . . . Robots Disrupted . | . . . . Combat Hostiles . | . . . . Robots Corrupted . | . . . . Combat Hostiles . | . . . . Parts Fried . | . . . . Impact Corruptions . | . . . . Robots Melted . | . . . . Combat Hostiles . | . . . . Parts Melted . | . . . . Heat Transferred . | . . . . Parts Sabotaged . | . . . . Parts Stolen . | . . . . Parts Stripped . | . . . . Power Chain Reactions . | . . . . Alert | -11 -10 -10 -9 ------- Run | Yrd Mat Min Mat Maximum Alert Level . | . . . . Low Security (%) 100 | 100 100 100 100 Level 1 . | . . . . Level 2 . | . . . . Level 3 . | . . . . Level 4 . | . . . . Level 5 . | . . . . High Security . | . . . . Max Security . | . . . . Peak Influence 197 | . 197 69 106 Initial 69 | . . 69 . Average 45 | . 77 16 16 Influence Increases 568 | . 421 21 126 Destroy 0b10 Robot/C 380 | . 300 20 60 Destroy 0b10 Robot/NC 40 | . 30 . 10 Destroy Leader 84 | . 74 . 10 Allied During Kill 1 | . . 1 . Disable Machine 45 | . 15 . 30 Destroy Structure 18 | . 2 . 16 Influence Decreases 491 | . 243 199 49 Entered New Map 109 | . . 109 . Time Decay 302 | . 203 70 29 Lost Part 60 | . 40 . 20 Lost Ally 20 | . . 20 . Squads Dispatched 4 | . 3 . 1 Investigation 1 | . 1 . . Extermination . | . . . . Reinforcement 3 | . 2 . 1 Assault . | . . . . Garrison . | . . . . Intercept . | . . . . Searches Triggered . | . . . . Construction Impeded . | . . . . Haulers Reinforced . | . . . . Active Scanning Responses . | . . . . Cargo Convoy Interrupts . | . . . . Stealth | -11 -10 -10 -9 --------- Run | Yrd Mat Min Mat Distress Signals 3 | . 3 . . Communications Jammed . | . . . . Distress Signals . | . . . . Times Spotted 36 | . 27 . 9 Peak Tracking Total 5 | . 5 . 4 Tactical Retreats . | . . . . Traps | -11 -10 -10 -9 ------- Run | Yrd Mat Min Mat Traps Triggered 2 | . 2 . . Indirectly . | . . . . Trap Hack Attempts . | . . . . Triggered . | . . . . Disarmed . | . . . . Reprogrammed . | . . . . Reused . | . . . . Traps Extracted . | . . . . Installed . | . . . . Triggered . | . . . . Machines | -11 -10 -10 -9 ---------- Run | Yrd Mat Min Mat Machines Disabled 3 | . 1 . 2 Max in Single Turn 2 | . 1 . 2 Machines Repaired . | . . . . Machines Dismantled . | . . . . Machines Sabotaged . | . . . . Overloaded Fab Kills . | . . . . Hacking | -11 -10 -10 -9 --------- Run | Yrd Mat Min Mat Machines Accessed 2 | . 1 . 1 Terminals 2 | . 1 . 1 Fabricators . | . . . . Repair Stations . | . . . . Recycling Units . | . . . . Scanalyzers . | . . . . Garrison Access . | . . . . Total Hacks 3 | . 1 . 2 Successful 2 | . . . 2 Failed 1 | . 1 . . Catastrophic 1 | . 1 . . Database Lockouts . | . . . . Manual 3 | . 1 . 2 Terminals 3 | . 1 . 2 Fabricators . | . . . . Repair Stations . | . . . . Recycling Units . | . . . . Scanalyzers . | . . . . Garrison Access . | . . . . Terminal Hacks . | . . . . Fabricator Hacks . | . . . . Repair Station Hacks . | . . . . Recycling Unit Hacks . | . . . . Scanalyzer . | . . . . Garrison Access Hacks . | . . . . Unauthorized Hacks 2 | . . . 2 Terminals 2 | . . . 2 Botnet 1 | . . . 1 Operators 1 | . . . 1 Fabricators . | . . . . Repair Stations . | . . . . Recycling Units . | . . . . Scanalyzers . | . . . . Garrison Access . | . . . . Data Cores Recovered . | . . . . Used . | . . . . Hacking Detections 2 | . 1 . 1 Full Trace Events . | . . . . Feedback Events . | . . . . Feedback Blocked . | . . . . Robot Schematics Acquired . | . . . . Robots Built . | . . . . Authchips . | . . . . Time . | . . . . Total Robot Build Rating . | . . . . Part Schematics Acquired . | . . . . Parts Built . | . . . . Authchips . | . . . . Time . | . . . . Total Part Build Rating . | . . . . Parts Repaired . | . . . . Time . | . . . . Parts Recycled . | . . . . Recycled Matter . | . . . . Retrieved Matter . | . . . . Retrieved Components . | . . . . Parts Scanalyzed . | . . . . Part Schematics Acquired . | . . . . Parts Damaged . | . . . . Bothacking | -11 -10 -10 -9 ------------ Run | Yrd Mat Min Mat Used RIF Installer . | . . . . Robots Hacked . | . . . . Non-combat . | . . . . Combat . | . . . . Robot Hacks Applied . | . . . . Relay Couplers Released . | . . . . Fabnet Peak Effective % . | . . . . Robots Rewired . | . . . . Allies Hacked . | . . . . Hacks Repelled . | . . . . Allies | -11 -10 -10 -9 -------- Run | Yrd Mat Min Mat Total Allies 1 | . . 1 . Largest Group 1 | . . 1 . Highest-Rated Group 31 | . . 31 . Highest-Rated Ally 31 | . . 31 . Total Orders . | . . . . Ally Attacks 5 | . . 5 . Total Damage 63 | . . 63 . Kills 1 | . . 1 . Allies Corrupted . | . . . . Allies Melted . | . . . . Intel | -11 -10 -10 -9 ------- Run | Yrd Mat Min Mat Active Infowar (turns) . | . . . . Robot Analysis Total . | . . . . Derelict Logs Recovered . | . . . . Drone Launches . | . . . . Drone Recoveries . | . . . . Exploration | -11 -10 -10 -9 ------------- Run | Yrd Mat Min Mat Turns Passed 1329 | 85 654 337 253 Spaces Moved 624 | 60 330 141 93 Core 19 | 7 . . 12 Treads . | . . . . Legs 605 | 53 330 141 81 Wheels . | . . . . Hover . | . . . . Flight . | . . . . Fastest Speed 50 | 50 120 190 190 Average Speed 153 | 111 127 190 219 Slowest Speed 450 | 120 260 190 450 Overloaded Moves . | . . . . Propulsion Burnouts . | . . . . Robots Hopped . | . . . . Potential Cave-ins . | . . . . Cave-ins Triggered . | . . . . Exploration Rate (%) 32 | 5 55 49 19 Regions Visited 3 Branch Regions 1 Pre-discovered Areas . | . . . . Known Exits Taken 2 | . 1 1 . Unknown Exits Taken 1 | 1 . . . Scrap Searched 1 | . . 1 . Spaces Dug 1 | . . . 1 Terrain Destroyed 13 | . . . 13 Melee 1 | . . . 1 Projectile . | . . . . AOE 12 | . . . 12 Terrain Rammed . | . . . . Walls Destroyed . | . . . . Machines Disabled . | . . . . Actions | -11 -10 -10 -9 --------- Run | Yrd Mat Min Mat Total 858 | 75 453 211 119 Wait 111 | 5 36 70 . Move 621 | 59 329 140 93 Hop . | . . . . Pick Up 13 | 5 7 1 . Fast Attach 7 | 5 1 . 1 Attach 8 | 1 2 . 5 Detach . | . . . . Swap 4 | . 4 . . Drop 5 | . 5 . . Fire 85 | . 66 . 19 Melee 1 | . . . 1 Ram . | . . . . Kick 3 | . 3 . . Crush . | . . . . Escape Stasis . | . . . . Rewire . | . . . . Trap . | . . . . Miscellaneous . | . . . . Route ------- -11/Scrapyard -10/Materials -10/Mines -9/Materials History --------- Turn | Location | Event 2 | -11/Scrapyard | Met Revision 17 27 | -11/Scrapyard | Discovered new exit (range 15) 86 | -11/Scrapyard | Entered Materials 315 | -10/Materials | Build established: Mutant 531 | -10/Materials | Core integrity fell below 50% 554 | -10/Materials | Core integrity fell below 20% 721 | -10/Materials | Discovered new exit (range 11) 738 | -10/Materials | Identified exit to Mines 740 | -10/Materials | Entered Mines 743 | -10/Mines | Received a Mining Laser from a helpful Derelict 1012 | -10/Mines | Discovered new exit (range 6) 1020 | -10/Mines | Identified exit to Materials 1077 | -10/Mines | Entered Materials 1077 | -9/Materials | Evolved 2 slots: Utility x2 1276 | -9/Materials | Core integrity fell below 50% 1289 | -9/Materials | Core integrity fell below 20% 1330 | -9/Materials | Destroyed by G-34 Mercenary with Small Laser Last Messages --------------- 01283_ Destroyed Grenade Launcher. 01283_ U-05 Engineer builds a Wall. 01285_ U-05 Engineer lays Concrete. 01286_ U-05 Engineer destroyed. 01288_ Neutrino Reactor explodes. 01288_ L-31 Rogue destroyed. 01300_ ALERT: Hostiles spotted, dispatching reinforcements to Terminal M002. 01304_ Acquired Katana. 01307_ K-01 Serf collects debris. 01308_ Grenade Launcher destroyed. 01310_ K-01 Serf collects debris. 01312_ R-06 Scavenger collects Wheel. 01313_ K-01 Serf collects debris. 01314_ U-05 Engineer builds a Wall. 01316_ R-06 Scavenger collects Wheel. 01316_ K-01 Serf collects debris. 01318_ U-05 Engineer lays Concrete. 01319_ U-05 Engineer builds a Wall. 01319_ R-06 Scavenger collects Corrupted Structural Scanner. 01323_ R-06 Scavenger collects Corrupted Sml. Laser. Map ----- +----------------------------------------------------+ | ??????????????????# ??# "" #??????????# #? | | ??????????????????# ??# #?????????## ## | | ??????????????????# #######+############## | | ??????????????????# | | ??????????????????# | | ??????????????????+ """ """ """ ##########+ | | ??????????????????# """ """ """ #?????# | | ??????????????????# """ """ """ #?????# "" | | ??????????????????# """ """ """ #?????# "" | | ??????????????????# """ """ """ #?????# "" | | ??????????????????# #?????# | | ??????????????????# #?????# | | ??????????????????# """ """ """ #?????##### | | ???????????? "##### """ """ """ #?????????? | | ??????????? """ """ """ #?????????? | | ??????????? """ """ #?????????? | | ??????????? """ """ #?????????? | | ??????????????# ##?????????? | | ??????????????# #??????????? | | ???????????? #??????????? | | ???????????? #??????????? | | ????????????? #??????????? | | ?????????????""" % % #??????????? | | ???????????????" #######k #??????????? | | ???????????????" ## ! # ""?????? | | ?????????????? #@ !m% [ ???? | | ??????????????? ## g #####??????? | | ??????????????? ??# #??????????? | | ???????????????? ??# ^#??????????? | | ????????????????? ??# # Y#??????????? | | ?????????????????????????# + ????????? | | ?????????????????????????# #?######???????? | | ?????????????????????????# #??????????????? | | ?????????????????????????##########??????????????? | | ?????????????????????????????????????????????????? | | ?????????????????????????????????????????????????? | | ?????????????????????????????????????????????????? | | ?????????????????????????????????????????????????? | | ?????????????????????????????????????????????????? | | ?????????????????????????????????????????????????? | | ?????????????????????????????????????????????????? | | ?????????????????????????????????????????????????? | | ?????????????????????????????????????????????????? | | ?????????????????????????????????????????????????? | | ?????????????????????????????????????????????????? | | ?????????????????????????????????????????????????? | | ?????????????????????????????????????????????????? | | ???????????????????????o?????????????????????????? | | ?????????????????????????????????????????????????? | | ?????????????????????????????????????????????????? | +----------------------------------------------------+ Best States ------------- Heat Dissipation 28 Energy Generation 10 Energy Capacity 250 Matter Stores 300 Matter Capacity 300 Sight Range 16 Terrain Scan Density 10 Armor Coverage 150 Evasion (%) 55 Item Schematics ----------------- None Robot Schematics ------------------ None Fabricated ------------ Nothing Repaired ---------- Nothing Alien Tech Used ----------------- None Achievements -------------- None Challenges ------------ None Game ------ Seed OpticalLauncherProtection Manual? 0 Play Time 00:10:14 Cumulative 34.2 hours Start 2025.10.10 @ 21:26:20 End 2025.10.10 @ 21:44:05 Sessions 1 Manual Loads 0 Difficulty Rogue Special Mode None Game No. 85 Rogue 78 Adventurer 7 Explorer 0 Win Type - Total 0 Types 0/0/0/0/0/0/0/0/0/0 Lore% 8 Gallery% 30 Achievement% 29 Wizard Run 0 Options --------- Layout 0 ASCII 0 Keyboard 1 Movement Vi Keybinds 0 Fullscreen 1 Font 18/SmallcapsGlow Map View 112x50 Zoom Use 0% Tactical HUD 1 Map Filters NONE Filters NONE Steam X RUN: b893d5df-ee79-4159-b5f3-098bdd7cb8c0